Cogmind - Beta 16.1 @@@ ROGUE MODE // 2026.04.15 @ 20:13:29 Player: ae Result: Escaped! Performance ------------- Evolutions (9) 4500 Regions Visited (15) 3000 Robots Destroyed (84) 420 Value Destroyed (1053) 1053 Prototype IDs (36) 720 Alien Tech Used (0) 0 Bonus (3833) 3833 TOTAL SCORE: 13526 Bonus ------- Follower Combat Kills 33 Entered DSFs 500 Aligned with FarCom 300 Win 3000 Cogmind --------- Core Integrity 1585/1600 Matter 250/300 Energy 39/100 System Corruption 2% Temperature Cool (54) Movement Flying (14) Location To Epsilon Eridani Parts ------- > --- POWER (2) -------- Backup Power VII Backup Power VII > --- PROPULSION (10) -- Xenon Bombardment Thruster Xenon Bombardment Thruster Cooled VTOL Module Cooled VTOL Module Nuclear Pulse Thruster Field Propulsion Drive Cooled Nuclear Pulse Thruster Impulse Thruster Field Propulsion Array > --- UTILITY (11) ----- Improved Cooling System Large Storage Unit Experimental Sensor Array ECM Suite Advanced Reaction Control System Advanced Powered Armor Hacking Suite Improved Hacking Suite System Shield System Shield Improved System Shield > --- WEAPON (2) ------- Enhanced Nova Cannon > --- INVENTORY (15) --- Micro Nuclear Core Micro Fission Core Medium Storage Unit Structural Scanner Advanced Reaction Control System PSU Rigger Heavy Phase Cannon Enhanced Nova Cannon Heavy Proton Missile Launcher Fusion Bomb Launcher Power Sword Spear Enhanced Force Lance Peak State ------------ > --- POWER ------------ Backup Power VII Backup Power VII > --- PROPULSION ------- Xenon Bombardment Thruster Xenon Bombardment Thruster Cooled VTOL Module Cooled VTOL Module Nuclear Pulse Thruster Field Propulsion Drive Cooled Nuclear Pulse Thruster Impulse Thruster Field Propulsion Array > --- UTILITY ---------- Large Storage Unit ECM Suite Advanced Reaction Control System Advanced Powered Armor Hacking Suite Hacking Suite Hacking Suite Improved Hacking Suite System Shield System Shield Improved System Shield > --- WEAPON ----------- Heavy Phase Cannon Enhanced Nova Cannon > --- INVENTORY -------- Micro Nuclear Core Micro Fission Core Improved Cooling System Medium Storage Unit Structural Scanner Experimental Sensor Array Advanced Reaction Control System PSU Rigger Enhanced Nova Cannon Heavy Proton Missile Launcher Fusion Bomb Launcher Power Sword Spear Enhanced Force Lance [Rating: 136] Favorites ----------- Power Backup Power VII Engine Improved Ion Engine Power Core Backup Power VII Propulsion Cooled VTOL Module Treads Light Treads Flight Unit Cooled VTOL Module Utility Hacking Suite Device ECM Suite Storage Large Storage Unit Processor Core Analyzer Hackware Hacking Suite Protection Advanced Powered Armor Weapon Enhanced Nova Cannon Energy Gun EM Pulse Gun Energy Cannon Enhanced Nova Cannon Ballistic Gun Autogun Slashing Weapon Power Sword Piercing Weapon Spear Build | -11 -10 -10 -10 -9 -8 -7 -7 -7 -6 -5 -4 -3 -3 -2 -1 ------- Run | Yrd Mat Min Exi Min Mat Fac Low Low Fac Fac Fac Res DSF Res Acc Slots Evolved 18 | . . . . . 4 2 . . 2 2 2 2 . 2 2 Power 1 | . . . . . . . . . . 1 . . . . . Propulsion 8 | . . . . . 2 1 . . 1 . 1 1 . 1 1 Utility 9 | . . . . . 2 1 . . 1 1 1 1 . 1 1 Weapon . | . . . . . . . . . . . . . . . . Parts Attached 68 | 7 5 . . 1 9 17 1 . 6 6 5 2 1 3 5 Power 4 | . 1 . . . 1 . . . . 2 . . . . . Engine 1 | . 1 . . . . . . . . . . . . . . Core 3 | . . . . . 1 . . . . 2 . . . . . Reactor . | . . . . . . . . . . . . . . . . Propulsion 22 | 2 . . . . 2 10 . . 1 2 1 1 1 1 1 Treads 4 | 2 . . . . 2 . . . . . . . . . . Leg . | . . . . . . . . . . . . . . . . Wheel . | . . . . . . . . . . . . . . . . Hover . | . . . . . . . . . . . . . . . . Flight 18 | . . . . . . 10 . . 1 2 1 1 1 1 1 Utility 29 | 2 2 . . . 4 6 1 . 3 2 3 1 . 2 3 Device 7 | 1 . . . . . 1 1 . 1 1 1 . . . 1 Storage 5 | 1 2 . . . . 1 . . 1 . . . . . . Processor 3 | . . . . . 1 . . . . 1 . . . . 1 Hackware 10 | . . . . . . 4 . . 1 . 2 1 . 2 . Protection 4 | . . . . . 3 . . . . . . . . . 1 Artifact . | . . . . . . . . . . . . . . . . Weapon 13 | 3 2 . . 1 2 1 . . 2 . 1 . . . 1 Energy Gun 1 | 1 . . . . . . . . . . . . . . . Energy Cannon 2 | . . . . . . . . . . . 1 . . . 1 Ballistic Gun 6 | 2 2 . . 1 1 . . . . . . . . . . Ballistic Cannon . | . . . . . . . . . . . . . . . . Launcher . | . . . . . . . . . . . . . . . . Special Weapon . | . . . . . . . . . . . . . . . . Impact Weapon . | . . . . . . . . . . . . . . . . Slashing Weapon 3 | . . . . . 1 . . . 2 . . . . . . Piercing Weapon 1 | . . . . . . 1 . . . . . . . . . Special Melee Weapon . | . . . . . . . . . . . . . . . . Unidentified Prototypes 1 | . . . . . . 1 . . . . . . . . . Parts Lost 2 | . . . . . 1 . . . . . . . 1 . . Power . | . . . . . . . . . . . . . . . . Propulsion . | . . . . . . . . . . . . . . . . Utility 2 | . . . . . 1 . . . . . . . 1 . . Weapon . | . . . . . . . . . . . . . . . . Highest Loss Streak 1 | . . . . . 1 . . . . . . . 1 . . To Critical Strikes . | . . . . . . . . . . . . . . . . Average Backups 13 | 3 13 15 15 15 14 5 8 8 10 14 14 13 15 13 14 Power 1 | 1 1 1 1 1 1 . 1 1 1 . 1 2 2 2 2 Propulsion 1 | 1 3 5 5 4 4 . 1 1 1 3 3 2 2 1 . Utility 5 | . 3 4 4 4 5 3 4 4 6 7 6 7 9 7 5 Weapon 5 | . 3 4 3 4 3 1 1 2 1 3 2 2 2 3 6 Tool/Special . | . . . . . . . . . . . . . . . . Unused Backups 37 | . 7 2 . 2 6 3 . . 4 4 1 . 1 . 7 Power 7 | . 4 . . . 2 . . . . 1 . . . . . Propulsion 5 | . 1 1 . 1 1 . . . . 1 . . . . . Utility 17 | . 2 1 . 1 2 2 . . 4 1 . . 1 . 3 Weapon 7 | . . . . . . 1 . . . 1 1 . . . 4 Tool/Special 1 | . . . . . 1 . . . . . . . . . . Average Slot Usage (%) 92 | . 93 100 100 100 87 89 92 92 97 88 92 93 95 91 92 Engine 1 | . 7 14 14 14 2 . . . . . . . . . . Core 6 | . . . . . 6 7 7 7 6 9 10 9 9 8 8 Treads 5 | . 28 28 28 28 27 . . . . . . . . . . Flight 28 | . . . . . . 34 38 38 39 30 30 33 33 34 35 Device 9 | . 14 14 14 14 5 4 7 7 6 10 9 9 9 8 9 Storage 5 | . 14 14 14 14 9 1 7 7 6 5 5 4 4 4 4 Hackware 20 | . . . . . . 22 23 23 24 23 25 26 28 26 26 Protection 3 | . . . . . 11 6 . . . . . . . . 3 Energy Cannon 2 | . . . . . . . . . . . 3 4 4 4 4 Ballistic Gun 5 | . 28 28 28 28 15 . . . . . . . . . . Peak Build Rating 136 | 6 12 11 12 13 29 44 50 50 59 72 93 100 102 115 136 Average Rating 95 | 4 9 11 11 12 22 37 49 50 54 66 87 98 100 111 131 On Entrance 47 | . 6 11 11 12 13 29 43 50 50 59 72 89 100 99 115 Avg Prop Armor Cover (%) 3 | . . . . . . . . . . 4 . . 5 2 4 Naked Turns . | . . . . . . . . . . . . . . . . Heaviest Build 64 | 9 34 34 34 34 43 18 15 14 33 38 46 44 44 44 64 Greatest Support 80 | 40 40 40 40 40 80 27 27 27 37 39 46 54 54 60 70 Greatest Overweight (x) 2 | 2 . . . . . . . . . 1 . . 1 . . Average Overweight (x) . | . . . . . . . . . . . . . . . . Largest Inventory Capacity 15 | 8 15 15 15 15 15 15 8 8 15 15 15 15 15 15 15 Average Capacity 14 | 7 13 15 15 15 15 5 8 8 12 15 15 15 15 15 15 Most Carried 15 | 5 15 15 15 15 15 15 8 8 15 15 15 15 15 15 15 Average Carried 13 | 3 13 15 14 14 14 5 7 8 10 14 14 13 14 13 14 Final Capacity 15 | 8 15 15 15 15 15 8 8 8 15 15 15 15 15 15 15 Final Carried 15 | 5 15 15 15 15 15 8 8 8 15 15 15 15 15 15 13 Class Distribution -------------------- 48% | Wizard-Mutant 21% | Mutant 13% | Hacker-Sprinter 12% | Hacker-Mutant 4% | Wizard-Sprinter Dominant Class ---------------- Mutant | -10/Materials Mutant | -10/Mines Mutant | -10/Exiles Mutant | -9/Mines Mutant | -8/Materials Hacker-Sprinter | -7/Factory Hacker-Sprinter | -7/Lower Caves Hacker-Sprinter | -7/Lower Caves Hacker-Sprinter | -6/Factory Hacker-Sprinter | -5/Factory Hacker-Sprinter | -4/Factory Wizard-Sprinter | -3/Research Wizard-Mutant | -3/DSF Wizard-Sprinter | -2/Research Wizard-Mutant | -1/Access Resources | -11 -10 -10 -10 -9 -8 -7 -7 -7 -6 -5 -4 -3 -3 -2 -1 ----------- Run | Yrd Mat Min Exi Min Mat Fac Low Low Fac Fac Fac Res DSF Res Acc Matter Collected 1660 | 334 302 56 . 82 351 170 10 . 100 50 106 . . 59 40 Remotely . | . . . . . . . . . . . . . . . . Salvage Created 3744 | 146 194 37 . 150 469 605 . . 741 693 359 . . 176 174 Parts 184 | 10 19 2 . 11 28 29 . . 29 21 20 . . 8 7 Haulers Intercepted 7 | . 1 . . . 1 . . . 3 2 . . . . . Recyclers Shooed 2 | . . . . 1 . 1 . . . . . . . . . Parts Field Recycled . | . . . . . . . . . . . . . . . . Retrieved Matter . | . . . . . . . . . . . . . . . . Parts Self-Destructed . | . . . . . . . . . . . . . . . . Prevented . | . . . . . . . . . . . . . . . . Parts Restored . | . . . . . . . . . . . . . . . . Kills | -11 -10 -10 -10 -9 -8 -7 -7 -7 -6 -5 -4 -3 -3 -2 -1 ------- Run | Yrd Mat Min Exi Min Mat Fac Low Low Fac Fac Fac Res DSF Res Acc Combat Hostiles Destroyed 16 | . 2 2 . 3 9 . . . . . . . . . . Guns 16 | . 2 2 . 3 9 . . . . . . . . . . Classes Destroyed 13 | 2 4 . . 3 2 1 . . 1 . . . . . . Worker 23 | . 4 . . . . 10 . . 1 6 2 . . . . Builder 11 | . . . . . . 1 . . 4 2 3 . . 1 . Tunneler 6 | 3 1 . . 1 . . . . . . 1 . . . . Hauler 7 | . 1 . . . 1 . . . 3 2 . . . . . Recycler 14 | 1 . . . . 1 4 . . 2 2 2 . . 1 1 Mechanic 1 | . . . . . . . . . 1 . . . . . . Operator 2 | . . . . . 1 1 . . . . . . . . . Watcher 4 | . 2 . . . . . . . . . . . . 1 1 Swarmer 7 | . 2 2 . . 3 . . . . . . . . . . Grunt 3 | . . . . 1 2 . . . . . . . . . . Duelist 1 | . . . . 1 . . . . . . . . . . . Sentry 3 | . . . . 1 2 . . . . . . . . . . Hunter 2 | . . . . . 2 . . . . . . . . . . Best Kill Streak 7 | 3 2 2 . 2 3 7 . . 3 4 3 . . 3 1 Combat Bots Only 3 | . 2 2 . 2 3 . . . . . . . . . . Max Kills in Single Turn 2 | 1 1 2 . 1 2 1 . . 1 1 1 . . 1 1 Gunslinging 1 | . . 1 . . . . . . . . . . . . . Exploded . | . . . . . . . . . . . . . . . . Melee . | . . . . . . . . . . . . . . . . Uniques/NPCs Destroyed . | . . . . . . . . . . . . . . . . Combat | -11 -10 -10 -10 -9 -8 -7 -7 -7 -6 -5 -4 -3 -3 -2 -1 -------- Run | Yrd Mat Min Exi Min Mat Fac Low Low Fac Fac Fac Res DSF Res Acc Hostile Shots Fired 125 | . 26 11 . 2 38 11 . 2 1 2 2 . 9 1 20 Missed 50 | . 10 4 . 1 14 9 . 1 1 . 1 . 4 1 4 Hits 75 | . 16 7 . 1 24 2 . 1 . 2 1 . 5 . 16 Projectile 75 | . 16 7 . 1 24 2 . 1 . 2 1 . 5 . 16 Critical Strikes 1 | . . . . . . . . . . . 1 . . . . Damage Taken 1042 | . 130 59 . 59 375 22 . 18 . 48 19 . 159 . 153 Core 175 | . 41 17 . 14 49 . . 18 . . . . 21 . 15 Absorbed by Shields . | . . . . . . . . . . . . . . . . Regen/Repaired (Parts) 11 | . . . . . . . . . 11 . . . . . . Core Remaining (%) 95 | 100 . . . 71 91 . . 97 100 100 100 . 98 100 99 Volleys Fired 113 | 14 25 3 . 9 32 . . . . . 7 . . . 23 Largest 2 | 2 2 2 . 2 2 . . . . . 1 . . . 1 Hottest 120 | 60 46 46 . 46 46 . . . . . 90 . . . 120 Shots Fired 196 | 28 50 6 . 18 64 . . . . . 7 . . . 23 Gun 166 | 28 50 6 . 18 64 . . . . . . . . . . Cannon 30 | . . . . . . . . . . . 7 . . . 23 Launcher . | . . . . . . . . . . . . . . . . Special . | . . . . . . . . . . . . . . . . Kinetic 164 | 26 50 6 . 18 64 . . . . . . . . . . Thermal 30 | . . . . . . . . . . . 7 . . . 23 Explosive . | . . . . . . . . . . . . . . . . Electromagnetic 2 | 2 . . . . . . . . . . . . . . . Robot Hit Streak 16 | 8 9 5 . 4 16 . . . . . . . . . 4 Robot Miss Streak 3 | 3 3 1 . 3 2 . . . . . . . . . . Penetration Max . | . . . . . . . . . . . . . . . . Secondary Targets 2 | . . 1 . . 1 . . . . . . . . . . Max Gunslinging Chain 1 | . . 1 . . 1 . . . . . . . . . . Shots Hit Robots 187 | 20 28 5 . 9 49 23 . . 22 15 8 . 1 4 3 Core Hits 82 | 5 10 2 . 7 24 10 . . 9 6 4 . . 3 2 Critical Kills 1 | . . 1 . . . . . . . . . . . . . Critical Parts Destroyed 1 | . . . . 1 . . . . . . . . . . . Critical Strikes 5 | . . 1 . 1 . 1 . . 1 1 . . . . . Destroy 2 | . . 1 . 1 . . . . . . . . . . . Sever 2 | . . . . . . . . . 1 1 . . . . . Impale 1 | . . . . . . 1 . . . . . . . . . Melee Attacks 190 | . . . . . 7 43 . . 54 26 32 . 4 7 17 Impact . | . . . . . . . . . . . . . . . . Slashing 155 | . . . . . 7 27 . . 35 26 32 . 4 7 17 Piercing 35 | . . . . . . 16 . . 19 . . . . . . Sneak Attacks 52 | . . . . . 1 15 . . 12 12 8 . 1 2 1 Combat Hostiles . | . . . . . . . . . . . . . . . . Follow-up Attacks 3 | . . . . . . . . . 3 . . . . . . Damage Inflicted 7092 | 261 404 95 . 193 760 1511 . . 1425 1217 688 . 74 262 202 Guns 1574 | 221 397 95 . 179 682 . . . . . . . . . . Cannons 51 | . . . . . . . . . . . . . . . 51 Explosions 40 | 40 . . . . . . . . . . . . . . . Melee 5406 | . . . . . 78 1511 . . 1425 1217 688 . 74 262 151 Ramming 21 | . 7 . . 14 . . . . . . . . . . . Kinetic 1561 | 208 397 95 . 179 682 . . . . . . . . . . Thermal 91 | 40 . . . . . . . . . . . . . . 51 Explosive . | . . . . . . . . . . . . . . . . Electromagnetic 13 | 13 . . . . . . . . . . . . . . . Impact . | . . . . . . . . . . . . . . . . Slashing 4467 | . . . . . 78 921 . . 1076 1217 688 . 74 262 151 Piercing 939 | . . . . . . 590 . . 349 . . . . . . Highest Corruption 2 | . . . . . . . . . . . . . . . 2 Average Corruption 2 | . . . . . . . . . . . . . . . 2 Corruption Purged . | . . . . . . . . . . . . . . . . Corruption Blocked . | . . . . . . . . . . . . . . . . Overload Shots . | . . . . . . . . . . . . . . . . Overflow Damage 1368 | 18 . . . . 48 408 . . 278 364 220 . . 32 . Projectiles . | . . . . . . . . . . . . . . . . Explosions 18 | 18 . . . . . . . . . . . . . . . Melee 1350 | . . . . . 48 408 . . 278 364 220 . . 32 . Knockbacks . | . . . . . . . . . . . . . . . . Impact . | . . . . . . . . . . . . . . . . Kinetic . | . . . . . . . . . . . . . . . . Secondary . | . . . . . . . . . . . . . . . . Self-Inflicted Damage . | . . . . . . . . . . . . . . . . Shots . | . . . . . . . . . . . . . . . . Rammed 3 | . 2 . . 1 . . . . . . . . . . . Targets Rammed 5 | . 3 . . 2 . . . . . . . . . . . Kicked . | . . . . . . . . . . . . . . . . Crushed 2 | . 1 . . 1 . . . . . . . . . . . Highest Temperature 103 | . 16 16 . 25 69 98 3 3 103 42 . . . . 45 Average Temperature 27 | . 8 8 . 11 12 32 3 3 31 20 . . . . 14 Received Heat Transfer 150 | . . . . 15 117 . . . . 9 . . 9 . . Siege Activations . | . . . . . . . . . . . . . . . . Martial Activations . | . . . . . . . . . . . . . . . . Shielding Activations . | . . . . . . . . . . . . . . . . Robots Disrupted . | . . . . . . . . . . . . . . . . Combat Hostiles . | . . . . . . . . . . . . . . . . Robots Corrupted . | . . . . . . . . . . . . . . . . Combat Hostiles . | . . . . . . . . . . . . . . . . Parts Fried . | . . . . . . . . . . . . . . . . Impact Corruptions . | . . . . . . . . . . . . . . . . Robots Melted . | . . . . . . . . . . . . . . . . Combat Hostiles . | . . . . . . . . . . . . . . . . Parts Melted 1 | . . . . . 1 . . . . . . . . . . Heat Transferred 87 | 50 . . . . . . . . . . . . . . 37 Parts Sabotaged . | . . . . . . . . . . . . . . . . Parts Stolen . | . . . . . . . . . . . . . . . . Parts Stripped . | . . . . . . . . . . . . . . . . Power Chain Reactions 1 | 1 . . . . . . . . . . . . . . . Alert | -11 -10 -10 -10 -9 -8 -7 -7 -7 -6 -5 -4 -3 -3 -2 -1 ------- Run | Yrd Mat Min Exi Min Mat Fac Low Low Fac Fac Fac Res DSF Res Acc Maximum Alert Level . | . . . . . . . . . . . . . . . . Low Security (%) 100 | 100 100 100 . 100 100 100 . . 100 100 100 100 100 100 100 Level 1 . | . . . . . . . . . . . . . . . . Level 2 . | . . . . . . . . . . . . . . . . Level 3 . | . . . . . . . . . . . . . . . . Level 4 . | . . . . . . . . . . . . . . . . Level 5 . | . . . . . . . . . . . . . . . . High Security . | . . . . . . . . . . . . . . . . Max Security . | . . . . . . . . . . . . . . . . Peak Influence 181 | 10 77 55 . 58 95 73 . . 19 28 39 8 21 11 181 Initial 10 | . . . . . 10 . . . . . 4 8 . 6 . Average 7 | 1 9 10 . 8 33 29 . . 2 10 11 5 3 5 5 Influence Increases 1756 | 20 160 55 . 122 305 281 . . 144 117 178 . 21 26 327 Destroy 0b10 Robot/C 340 | . 40 40 . 80 180 . . . . . . . . . . Destroy 0b10 Robot/NC 350 | 20 40 . . 5 25 80 . . 55 60 40 . . 15 10 Destroy Leader 84 | . 6 . . 10 54 . . . 6 4 . . . 2 2 Allied During Kill 27 | . . . . 12 15 . . . . . . . . . . Successful Hack 187 | . 29 . . . 11 52 . . 18 18 41 . . . 18 Disable Machine 90 | . . . . . . 15 . . 15 15 . . . . 45 Destroy Structure 258 | . . . . . 5 14 . . 20 20 52 . 6 9 132 Partial Spotted 165 | . . . . . . 90 . . 30 . 15 . . . 30 Lose Combat Pursuer 255 | . 45 15 . 15 15 30 . . . . 30 . 15 . 90 Influence Decreases 1756 | 20 160 55 . 95 332 224 57 . 144 106 172 17 10 37 327 Entered New Map 60 | . . . . . 17 . 22 . . . 7 9 . 5 . Time Decay 1565 | 20 160 55 . 93 265 179 35 . 142 106 153 8 . 32 317 Lost Part 20 | . . . . . 10 . . . . . . . 10 . . Lost Ally 66 | . . . . 2 40 . . . 2 . 12 . . . 10 Purge Threat 45 | . . . . . . 45 . . . . . . . . . Squads Dispatched 27 | . . . . . 1 2 . . 4 2 3 . 1 . 14 Investigation 2 | . . . . . . . . . 1 . 1 . . . . Extermination 16 | . . . . . . 1 . . 3 1 1 . . . 10 Reinforcement 9 | . . . . . 1 1 . . . 1 1 . 1 . 4 Assault . | . . . . . . . . . . . . . . . . Garrison . | . . . . . . . . . . . . . . . . Intercept . | . . . . . . . . . . . . . . . . Searches Triggered . | . . . . . . . . . . . . . . . . Construction Impeded . | . . . . . . . . . . . . . . . . Haulers Reinforced . | . . . . . . . . . . . . . . . . Active Scanning Responses . | . . . . . . . . . . . . . . . . Cargo Convoy Interrupts . | . . . . . . . . . . . . . . . . Stealth | -11 -10 -10 -10 -9 -8 -7 -7 -7 -6 -5 -4 -3 -3 -2 -1 --------- Run | Yrd Mat Min Exi Min Mat Fac Low Low Fac Fac Fac Res DSF Res Acc Distress Signals 7 | . . . . . 2 2 . . 2 . . . . . 1 Communications Jammed . | . . . . . . . . . . . . . . . . Distress Signals . | . . . . . . . . . . . . . . . . Times Spotted 75 | . 8 2 . 4 18 11 . 1 7 6 2 . 5 2 9 Peak Tracking Total 6 | . 3 3 . 3 4 6 . 1 3 5 3 . 6 1 6 Tactical Retreats 15 | . 1 1 . 1 1 4 . . 2 . 1 . 1 . 3 ECM-based Alert Blocks 5 | . . . . . . 2 . . 3 . . . . . . Traps | -11 -10 -10 -10 -9 -8 -7 -7 -7 -6 -5 -4 -3 -3 -2 -1 ------- Run | Yrd Mat Min Exi Min Mat Fac Low Low Fac Fac Fac Res DSF Res Acc Traps Triggered 4 | . 3 . . . . . . . . . . . 1 . . Indirectly . | . . . . . . . . . . . . . . . . Trap Hack Attempts . | . . . . . . . . . . . . . . . . Triggered . | . . . . . . . . . . . . . . . . Disarmed . | . . . . . . . . . . . . . . . . Reprogrammed 1 | . . . . . 1 . . . . . . . . . . Reused . | . . . . . . . . . . . . . . . . Traps Extracted . | . . . . . . . . . . . . . . . . Installed . | . . . . . . . . . . . . . . . . Triggered . | . . . . . . . . . . . . . . . . Machines | -11 -10 -10 -10 -9 -8 -7 -7 -7 -6 -5 -4 -3 -3 -2 -1 ---------- Run | Yrd Mat Min Exi Min Mat Fac Low Low Fac Fac Fac Res DSF Res Acc Machines Disabled 7 | . . . . 1 . 1 . . 1 1 . . . . 3 Max in Single Turn 1 | . . . . 1 . 1 . . 1 1 . . . . 1 Garrison Access 2 | . . . . . . . . . 1 . . . . . 1 Energy Cycler 1 | . . . . . . . . . . . . . . . 1 Machines Repaired . | . . . . . . . . . . . . . . . . Machines Dismantled . | . . . . . . . . . . . . . . . . Machines Sabotaged . | . . . . . . . . . . . . . . . . Overloaded Fab Kills . | . . . . . . . . . . . . . . . . Hacking | -11 -10 -10 -10 -9 -8 -7 -7 -7 -6 -5 -4 -3 -3 -2 -1 --------- Run | Yrd Mat Min Exi Min Mat Fac Low Low Fac Fac Fac Res DSF Res Acc Machines Accessed 60 | . 6 . 2 1 5 7 1 . 15 5 5 2 . 4 7 Terminals 36 | . 5 . . 1 4 2 . . 8 3 4 2 . 3 4 Fabricators 1 | . . . . . . 1 . . . . . . . . . Repair Stations 2 | . . . . . . . . . 1 . 1 . . . . Recycling Units 8 | . 1 . . . 1 2 . . 2 . . . . 1 1 Scanalyzers 7 | . . . . . . 2 . . 3 1 . . . . 1 Garrison Access 3 | . . . . . . . . . 1 1 . . . . 1 Total Hacks 143 | . 16 . 2 3 16 20 1 . 32 13 11 4 . 11 14 Successful 84 | . 7 . 2 . 5 10 1 . 24 8 8 3 . 5 11 Failed 59 | . 9 . . 3 11 10 . . 8 5 3 1 . 6 3 Catastrophic 11 | . 2 . . 1 4 1 . . 1 1 . . . . 1 Database Lockouts . | . . . . . . . . . . . . . . . . Manual 63 | . 12 . 1 3 7 3 . . 15 6 5 1 . 5 5 Terminals 94 | . 13 . . 3 14 9 . . 18 9 8 4 . 9 7 Fabricators 2 | . . . . . . 2 . . . . . . . . . Repair Stations 5 | . . . . . . . . . 2 . 3 . . . . Recycling Units 14 | . 3 . . . 2 3 . . 3 . . . . 2 1 Scanalyzers 20 | . . . . . . 6 . . 6 3 . . . . 5 Garrison Access 5 | . . . . . . . . . 3 1 . . . . 1 Terminal Hacks 36 | . 5 . 2 . 3 4 1 . 3 3 5 2 . 5 3 Record 1 | . . . 1 . . . . . . . . . . . . Robot Analysis 1 | . . . . . . . . . . . 1 . . . . Prototype ID Bank 4 | . 4 . . . . . . . . . . . . . . Open Door 2 | . . . . . . . 1 . . . . . . . 1 Open DSF 2 | . . . . . . . . . . . . 1 . 1 . Level Access Points 5 | . . . . . . . . . 1 . 1 1 . 1 1 Branch Access Points 3 | . 1 . . . . 1 . . 1 . . . . . . Machine Index 1 | . . . . . . . . . . . 1 . . . . Unreport Threat 2 | . . . . . . 2 . . . . . . . . . Reprogram Traps 1 | . . . . . 1 . . . . . . . . . . Maintenance Status 1 | . . . . . . . . . . . . . . 1 . Recall Reinforcements 1 | . . . . . . . . . . 1 . . . . . Hauler Manifests 3 | . . . . . 1 . . . . 1 1 . . . . Registered Components 5 | . . . . . 1 1 . . 1 1 1 . . . . Registered Prototypes 1 | . . . . . . . . . . . . . . 1 . Zone Layout 2 | . . . . . . . . . . . . . . 1 1 Proto ID Catalog 1 | . . . 1 . . . . . . . . . . . . Fabricator Hacks . | . . . . . . . . . . . . . . . . Repair Station Hacks 3 | . . . . . . . . . 2 . 1 . . . . Scan Component 1 | . . . . . . . . . 1 . . . . . . Repair 1 | . . . . . . . . . 1 . . . . . . Refit 1 | . . . . . . . . . . . 1 . . . . Recycling Unit Hacks 6 | . . . . . 1 2 . . 2 . . . . . 1 Retrieve Components 6 | . . . . . 1 2 . . 2 . . . . . 1 Scanalyzer 17 | . . . . . . 3 . . 6 3 . . . . 5 Insert Component 6 | . . . . . . 1 . . 2 1 . . . . 2 Retrieve Study 11 | . . . . . . 2 . . 4 2 . . . . 3 Garrison Access Hacks 2 | . . . . . . . . . 1 . . . . . 1 Seal Access 2 | . . . . . . . . . 1 . . . . . 1 Unauthorized Hacks 20 | . 2 . . . 1 1 . . 10 2 2 1 . . 1 Terminals 18 | . 1 . . . 1 . . . 10 2 2 1 . . 1 Assimilate 6 | . . . . . . . . . 2 1 2 . . . 1 Botnet 5 | . 1 . . . . . . . 2 1 . 1 . . . Operators 1 | . . . . . 1 . . . . . . . . . . Skim 6 | . . . . . . . . . 6 . . . . . . Fabricators . | . . . . . . . . . . . . . . . . Repair Stations . | . . . . . . . . . . . . . . . . Recycling Units 2 | . 1 . . . . 1 . . . . . . . . . Reject 1 | . 1 . . . . . . . . . . . . . . Recyclers 1 | . . . . . . 1 . . . . . . . . . Scanalyzers . | . . . . . . . . . . . . . . . . Garrison Access . | . . . . . . . . . . . . . . . . Data Cores Recovered 2 | . . . . . 1 1 . . . . . . . . . Used 1 | . . . . . 1 . . . . . . . . . . Hacking Detections 39 | . 6 . . 1 5 7 . . 7 5 2 1 . 2 3 Full Trace Events 2 | . . . . . . . . . 1 . 1 . . . . Feedback Events . | . . . . . . . . . . . . . . . . Feedback Blocked . | . . . . . . . . . . . . . . . . Robot Schematics Acquired . | . . . . . . . . . . . . . . . . Robots Built . | . . . . . . . . . . . . . . . . Authchips . | . . . . . . . . . . . . . . . . Time . | . . . . . . . . . . . . . . . . Total Robot Build Rating . | . . . . . . . . . . . . . . . . Part Schematics Acquired . | . . . . . . . . . . . . . . . . Parts Built . | . . . . . . . . . . . . . . . . Authchips . | . . . . . . . . . . . . . . . . Time . | . . . . . . . . . . . . . . . . Total Part Build Rating . | . . . . . . . . . . . . . . . . Part Studies Acquired 11 | . . . . . . 2 . . 4 2 . . . . 3 Parts Repaired 1 | . . . . . . . . . 1 . . . . . . Time 108 | . . . . . . . . . 108 . . . . . . Parts Recycled . | . . . . . . . . . . . . . . . . Recycled Matter . | . . . . . . . . . . . . . . . . Retrieved Matter . | . . . . . . . . . . . . . . . . Retrieved Components 15 | . . . . . 10 4 . . 1 . . . . . . Parts Scanalyzed . | . . . . . . . . . . . . . . . . Part Schematics Acquired . | . . . . . . . . . . . . . . . . Parts Damaged . | . . . . . . . . . . . . . . . . Bothacking | -11 -10 -10 -10 -9 -8 -7 -7 -7 -6 -5 -4 -3 -3 -2 -1 ------------ Run | Yrd Mat Min Exi Min Mat Fac Low Low Fac Fac Fac Res DSF Res Acc Used RIF Installer . | . . . . . . . . . . . . . . . . Robots Hacked . | . . . . . . . . . . . . . . . . Non-combat . | . . . . . . . . . . . . . . . . Combat . | . . . . . . . . . . . . . . . . Robot Hacks Applied . | . . . . . . . . . . . . . . . . Relay Couplers Released . | . . . . . . . . . . . . . . . . Fabnet Peak Effective % . | . . . . . . . . . . . . . . . . Robots Rewired . | . . . . . . . . . . . . . . . . Allies Hacked . | . . . . . . . . . . . . . . . . Hacks Repelled . | . . . . . . . . . . . . . . . . Allies | -11 -10 -10 -10 -9 -8 -7 -7 -7 -6 -5 -4 -3 -3 -2 -1 -------- Run | Yrd Mat Min Exi Min Mat Fac Low Low Fac Fac Fac Res DSF Res Acc Total Allies 7 | . . . . 3 . . . . 1 1 1 . . . 1 Largest Group 3 | . . . . 3 2 . . . 1 1 2 . . . 1 Highest-Rated Group 52 | . . . . 40 32 . . . 26 26 52 . . . 26 Highest-Rated Ally 26 | . . . . 16 16 . . . 26 26 26 . . . 26 Total Orders 3 | . . . . . 3 . . . . . . . . . . STAY 2 | . . . . . 2 . . . . . . . . . . FOLLOW 1 | . . . . . 1 . . . . . . . . . . Ally Attacks 28 | . . . . 9 19 . . . . . . . . . . Total Damage 359 | . . . . 111 248 . . . . . . . . . . Kills 3 | . . . . 1 2 . . . . . . . . . . Allies Corrupted . | . . . . . . . . . . . . . . . . Allies Melted . | . . . . . . . . . . . . . . . . Intel | -11 -10 -10 -10 -9 -8 -7 -7 -7 -6 -5 -4 -3 -3 -2 -1 ------- Run | Yrd Mat Min Exi Min Mat Fac Low Low Fac Fac Fac Res DSF Res Acc Active Infowar (turns) 16414 | 33 1353 289 332 771 443 167 168 7 937 284 318 30 173 80 11029 Sensors 2417 | . . . . . . . 164 7 1 . . . . . 2245 Structural 1996 | . . . . . . . . . 736 284 300 30 173 80 393 Seismic 3221 | 33 1353 289 332 771 443 . . . . . . . . . . ECM 11027 | . . . . . . 167 4 . 200 . 18 . . . 10638 Robot Analysis Total 1 | . . . . . . . . . . . 1 . . . . Derelict Logs Recovered 2 | . . 1 . 1 . . . . . . . . . . . Drone Launches . | . . . . . . . . . . . . . . . . Drone Recoveries . | . . . . . . . . . . . . . . . . Exploration | -11 -10 -10 -10 -9 -8 -7 -7 -7 -6 -5 -4 -3 -3 -2 -1 ------------- Run | Yrd Mat Min Exi Min Mat Fac Low Low Fac Fac Fac Res DSF Res Acc Turns Passed 17274 | 140 1353 289 332 771 779 454 168 7 980 302 387 30 173 80 11029 Spaces Moved 8237 | 60 750 168 207 455 389 1166 635 28 1997 718 674 123 152 246 469 Core 13 | 13 . . . . . . . . . . . . . . . Treads 2016 | 47 750 168 207 455 389 . . . . . . . . . . Legs . | . . . . . . . . . . . . . . . . Wheels . | . . . . . . . . . . . . . . . . Hover . | . . . . . . . . . . . . . . . . Flight 6208 | . . . . . . 1166 635 28 1997 718 674 123 152 246 469 Fastest Speed 14 | 50 160 160 160 160 160 24 25 25 21 23 23 21 21 17 14 Average Speed 56 | 142 160 160 160 160 160 25 25 25 21 25 23 21 27 19 16 Slowest Speed 162 | 160 160 160 160 160 162 29 25 25 25 100 26 21 99 20 20 Overloaded Moves . | . . . . . . . . . . . . . . . . Propulsion Burnouts . | . . . . . . . . . . . . . . . . Robots Hopped 34 | . . . . . . 6 4 . 13 4 . . 4 2 1 Potential Cave-ins 5 | . . . . . . . . . . . 2 . . . 3 Cave-ins Triggered . | . . . . . . . . . . . . . . . . Exploration Rate (%) 40 | 4 98 48 59 77 33 39 73 7 52 24 21 4 83 10 14 Regions Visited 15 Branch Regions 5 Pre-discovered Areas 4 | . . 1 1 . . . . . 2 . . . . . . Known Exits Taken 7 | . 1 . . . . 1 . . 1 1 1 1 . 1 . Unknown Exits Taken 7 | 1 . 1 1 1 1 . 1 1 . . . . . . . Scrap Searched 9 | . . . . 2 . . 7 . . . . . . . . Spaces Dug 93 | . . . . . 5 14 . . 20 10 25 . 3 3 13 Terrain Destroyed 143 | 7 . . . . 5 14 . . 20 10 30 . 3 3 51 Melee 90 | . . . . . 5 14 . . 20 10 23 . 3 3 12 Projectile 13 | . . . . . . . . . . . 7 . . . 6 AOE 40 | 7 . . . . . . . . . . . . . . 33 Terrain Rammed . | . . . . . . . . . . . . . . . . Walls Destroyed . | . . . . . . . . . . . . . . . . Machines Disabled . | . . . . . . . . . . . . . . . . Actions | -11 -10 -10 -10 -9 -8 -7 -7 -7 -6 -5 -4 -3 -3 -2 -1 --------- Run | Yrd Mat Min Exi Min Mat Fac Low Low Fac Fac Fac Res DSF Res Acc Total 20395 | 85 864 186 208 485 489 1274 639 27 2458 798 851 126 272 264 11369 Wait 11634 | . 53 12 . 10 27 24 6 . 393 36 116 . 102 8 10847 Move 8158 | 59 749 167 206 454 388 1153 626 27 1975 709 673 122 143 241 466 Hop 29 | . . . . . . 6 4 . 8 4 . . 4 2 1 Pick Up 81 | 4 16 2 1 4 12 7 1 . 16 6 5 2 1 3 1 Fast Attach 25 | 6 4 . . . 4 5 . . 1 2 1 . 1 . 1 Attach 30 | . . . . . 1 8 . . 3 3 6 2 . 3 4 Detach 17 | . . . . . . 4 . . 1 3 5 . . . 4 Swap 31 | 2 4 . . 1 5 4 1 . 6 1 3 . . . 4 Drop 74 | . 10 2 1 5 13 20 1 . 8 8 3 . 2 . 1 Fire 113 | 14 25 3 . 9 32 . . . . . 7 . . . 23 Melee 183 | . . . . . 7 43 . . 47 26 32 . 4 7 17 Ram . | . . . . . . . . . . . . . . . . Kick . | . . . . . . . . . . . . . . . . Crush 5 | . 3 . . 2 . . . . . . . . . . . Escape Stasis 15 | . . . . . . . . . . . . . 15 . . Rewire . | . . . . . . . . . . . . . . . . Trap . | . . . . . . . . . . . . . . . . Miscellaneous . | . . . . . . . . . . . . . . . . Route ------- -11/Scrapyard -10/Materials (discovered 5 exits: [*Mat x3] / *Min / [*Sub]) -10/Mines -10/Exiles -9/Mines -8/Materials -7/Factory (discovered 4 exits: *Fac x2 / *Low x2) -7/Lower Caves -7/Lower Caves -6/Factory (discovered 8 exits: *Fac x4 / *Low x2 / *Ext x2) -5/Factory (discovered 2 exits: *Fac / *Upp) -4/Factory (discovered 6 exits: *Res x4 / [*Upp x2]) -3/Research (discovered 4 exits: Res x3 / DSF) -3/DSF -2/Research (discovered 3 exits: *Acc x3) -1/Access (discovered 2 exits: *Sur / [Com]) To Epsilon Eridani History --------- Turn | Location | Event 13 | -11/Scrapyard | Discovered new exit (range 15) 141 | -11/Scrapyard | Entered Materials 253 | -10/Materials | Discovered new exit (range 9) 313 | -10/Materials | Build established: Mutant 368 | -10/Materials | Identified exit to Mines 999 | -10/Materials | Discovered new exit (range 6) 1208 | -10/Materials | Discovered new exit (range 9) 1406 | -10/Materials | Discovered new exit (range 13) 1494 | -10/Materials | Entered Mines 1502 | -10/Mines | Learned location of Zion (-7) 1729 | -10/Mines | Found a hidden stash of uninstalled traps 1777 | -10/Mines | Deemed a non-threat by the Exiles lab entrance 1777 | -10/Mines | Discovered new exit (range 5) 1783 | -10/Mines | Entered Exiles 1827 | -10/Exiles | Met 8R-AWN 1849 | -10/Exiles | Met EX-HEX 1892 | -10/Exiles | Met EX-BIN 1911 | -10/Exiles | Aligned with FarCom system 1913 | -10/Exiles | Given EX-Vault access code 1955 | -10/Exiles | Opened EX-Vault 1965 | -10/Exiles | Found PSU Rigger 1996 | -10/Exiles | Warned to stay clear of 0b10 Research branches 2046 | -10/Exiles | Met EX-DEC 2102 | -10/Exiles | Discovered new exit (range 10) 2115 | -10/Exiles | Left Exiles lab with PSU Rigger 2115 | -10/Exiles | Entered Mines 2122 | -9/Mines | Received a Rocket Launcher from a helpful Derelict 2199 | -9/Mines | Assisted by bots powering up and referring to "LRC-V3" 2217 | -9/Mines | Learned Materials trap positions 2236 | -9/Mines | Found a damaged Exp. Sensor Array with a note attached 2255 | -9/Mines | Found Prototype Device 2507 | -9/Mines | Found a Scrap Suit stashed away for nefarious purposes 2571 | -9/Mines | A weapon hastily lodged in a ceiling crevice suddenly fell to the ground 2865 | -9/Mines | Discovered new exit (range 8) 2886 | -9/Mines | Entered Materials 2886 | -8/Materials | Accompanied by 2 allies 2886 | -8/Materials | Evolved 4 slots: Propulsion x2, Utility x2 2887 | -8/Materials | Loaded intel: 24 trap records 3162 | -8/Materials | Discovered new exit (range 10) 3665 | -8/Materials | Entered Factory 3665 | -7/Factory | Evolved 2 slots: Propulsion x1, Utility x1 3731 | -7/Factory | Identified exit to Lower Caves 3855 | -7/Factory | Discovered new exit (range 16) 3943 | -7/Factory | Identified Exp. Sensor Array 3950 | -7/Factory | Discovered new exit (range 15) 3974 | -7/Factory | Build established: Hacker-Sprinter 4119 | -7/Factory | Entered Lower Caves 4172 | -7/Lower Caves | Found DCF Scrap (12 items) 4267 | -7/Lower Caves | Discovered new exit (range 12) 4287 | -7/Lower Caves | Entered another Lower Caves area 4287 | -7/Lower Caves | Discovered new exit (range 12) 4294 | -7/Lower Caves | Entered Factory 4294 | -6/Factory | Evolved 2 slots: Propulsion x1, Utility x1 4430 | -6/Factory | Repaired Exp. Sensor Array 4464 | -6/Factory | Identified exit to Lower Caves 4464 | -6/Factory | Identified exit to Extension 4659 | -6/Factory | Identified exit to Factory 4858 | -6/Factory | Learned 2 Extension zone layouts 4929 | -6/Factory | Learned 2 Extension zone layouts 4986 | -6/Factory | Found Prototype Processor 5037 | -6/Factory | Learned 2 Hub_04(d) zone layouts 5105 | -6/Factory | Learned location of 1 exit from Cetus 5141 | -6/Factory | Learned location of Extension (-6) 5160 | -6/Factory | Identified Exp. Targeting Computer 5189 | -6/Factory | Learned Hub_04(d) terminal intel 5274 | -6/Factory | Entered another Factory area 5274 | -5/Factory | Evolved 2 slots: Power x1, Utility x1 5537 | -5/Factory | Discovered new exit (range 10) 5548 | -5/Factory | Discovered new exit (range 3) 5565 | -5/Factory | Identified exit to Upper Caves 5570 | -5/Factory | Identified exit to Factory 5576 | -5/Factory | Entered another Factory area 5576 | -4/Factory | Accompanied by 1 ally 5576 | -4/Factory | Evolved 2 slots: Propulsion x1, Utility x1 5622 | -4/Factory | Identified exit to Research 5651 | -4/Factory | Discovered new exit (range 8) 5686 | -4/Factory | Discovered new exit (range 9) 5963 | -4/Factory | Entered Research 5963 | -3/Research | Evolved 2 slots: Propulsion x1, Utility x1 5968 | -3/Research | Identified exit to Research 5978 | -3/Research | Identified exit to DSF 5993 | -3/Research | Entered DSF 6089 | -3/DSF | Found Adv. Powered Armor 6093 | -3/DSF | Additional patrols routed to DSF 6162 | -3/DSF | Discovered exit to Research (range 14) 6166 | -3/DSF | Entered Research 6166 | -2/Research | Evolved 2 slots: Propulsion x1, Utility x1 6193 | -2/Research | Identified exit to Access 6203 | -2/Research | Found Fusion Bomb Launcher 6207 | -2/Research | Watched by a mysterious "MATRIX" hacker. 6246 | -2/Research | Entered Access 6246 | -1/Access | Evolved 2 slots: Propulsion x1, Utility x1 6260 | -1/Access | Identified exit to Surface 6329 | -1/Access | Discovered new exit (range 18) 6424 | -1/Access | Energy Cycler disabled 6500 | -1/Access | Build established: Wizard-Sprinter 7136 | -1/Access | Build established: Wizard-Mutant 15357 | -1/Access | Build established: Hacker-Mutant 17275 | *** | Escaped! Last Messages --------------- 09074_ ALERT: Suspicious intruders detected, dispatching Specialist reinforcements to area. 09241_ ALERT: Potential suspicious activity detected, Programmers report to Access Zone 6O. 09675_ ALERT: Potential suspicious activity detected, Programmers report to Access Zone 9M. 10398_ ALERT: Potential suspicious activity detected, Programmers report to Access Zone 9D. 10754_ ALERT: Potential suspicious activity detected, Programmers report to Access Zone 9I. 11159_ ALERT: Security rotation in progress. 11324_ ALERT: Suspicious intruders detected, dispatching Specialist reinforcements to area. 14159_ ALERT: Security rotation in progress. 14336_ ALERT: Suspicious intruders detected, dispatching Specialist reinforcements to area. 15030_ Discarded Hacking Suite. 17271_ Slug penetrates Sealed Heavy Doors. 17274_ Slug penetrates Reinforced Barrier. 17274_ Slug penetrates Sealed Heavy Doors. Map ----- +----------------------------------------------------+ | ??????????#############???????? # # ??????? | | ??????????#############????????? # # ??????? | | ??????????## ##???????"""" # # ??????? | | # ???## [ ##??????""""" # ##??????? | | +######???## ## ?????""""" # ##??????? | | ???## !]] ## """"" # ##??????? | | ? ???## !] ## """"" # ##??????? | | ?? ???## ]] ## # ##??????? | | ??"" ??## ## # ##??????? | | ???" ? ## ## # ##??????? | | ?""""" ######+####################+# ##??????? | | """""" # ? gg?? ###?????? | | "" # ggg ######### | | "" # ############################"######## | | + ############################# | | # ##????????????????????????### | | # ##?????????????????????????## " | | +########## g##???#####?????????????????## """ | | ########## g######################?????## """ | | ?????????## ####### ##############?????## " | | ?????????## """T""" " ?? # | | ?????????##pw""" """ "" "?BB # | | ?????????##p% " ""?BB? ###+##### | | ?????????## "" "????? ## | | ?????????## "" " ""?????? ## | | ?????????## p @" ""p"??????? ## | | ?????????## " ""???????? ## | | ?????????## ""p"?BB?????## # | | ?????????## "p""?BB?????## # | | ?????????## k " ???????## # | | ?????????## ####### ##############???????## # | | ?????????## ######################???????## " | | ?????????## s?????#####???????????????????## # | | ????????? # ?????????????????????????????## # | | ????????? # s?????????????????????????????## # | | ????????? # s?????????????????????????????## # | | ????????? # p?????????????????????????????## ## | | ????????? + ?s???????????????????????????## | | ????????? # ??sp??????????????????????????## | | ????????? # ??????????????????????????????## | | ??????????????????????????????????????????## | | ?????????????????????????p????????????????####"### | | ?????????????????????????p????????????????##### | | ????????????????????????????????????????????### | | ?????????????????????????????????????????????## | | ?????????????????????????????????????????????## | | ?????????????????????????????????????????????## " | | ??????????????????????????????????????????##### " | | ??????????????????????????????????????????##### | | ??????????????????????????????????????????## / | +----------------------------------------------------+ Best States ------------- Heat Dissipation 79 Energy Generation 29 Energy Capacity 265 Matter Stores 300 Matter Capacity 300 Sight Range 16 Robot Scan Range 20 Terrain Scan Density 10 ECM Strength 1 Armor Coverage 400 Evasion (%) 79 Core Analysis 6 Recoil Reduction 4 Offensive Hacking 52 Defensive Hacking 32 Item Schematics ----------------- None Robot Schematics ------------------ None Fabricated ------------ Nothing Repaired ---------- Exp. Sensor Array | 62% | -6/Factory Studied --------- Mic. Nuclear Core | -7/Factory | Hacked VTOL Module | -7/Factory | Hacked Nuclear Pulse Thruster | -6/Factory | Hacked Xenon Bombardment Thruster | -6/Factory | Hacked Cesium-ion Thruster | -6/Factory | Hacked Power Sword | -6/Factory | Hacked Nuclear Pulse Array | -5/Factory | Hacked Field Propulsion Drive | -5/Factory | Hacked Field Propulsion Array | -1/Access | Hacked Enh. Nova Cannon | -1/Access | Hacked Impulse Thruster | -1/Access | Hacked Alien Tech Used ----------------- None Achievements -------------- None Challenges ------------ None Game ------ Seed LongswordArmoredEdition Manual? 0 Play Time 01:33:51 Cumulative 209.1 hours Start 2026.04.15 @ 18:44:49 End 2026.04.15 @ 20:13:29 Sessions 1 Manual Loads 0 Difficulty Rogue Special Mode None Game No. 135 Rogue 131 Adventurer 4 Explorer 0 Win Type 0 Total 38 Types 37/0/1/0/0/0/0/0/0/0 Lore% 85 Gallery% 62 Achievement% 57 Wizard Run 0 Options --------- Layout 0 ASCII 0 Keyboard 1 Movement Vi Keybinds 1 Fullscreen 1 Font 18/SmallcapsGlow Map View 76x50 Zoom Use 0% Tactical HUD 1 Map Filters NONE Filters NONE Steam 1 RUN: d107243b-2015-4d77-9050-e9d35684cb79